bitfinex/quotes_BTCUSD_20251019
["timestamp","ask_amount","ask_price","bid_price","bid_amount"]
[1760860385712,0.34,106990.0,106980.0,0.03618228]
[1760860385833,0.34,106990.0,106980.0,0.12990228]
[1760860386479,0.34,106990.0,106980.0,0.03618228]
[1760860387022,0.34,106990.0,106980.0,0.12990228]
[1760860387418,0.34,106990.0,106980.0,0.03618228]
[1760860387619,0.34,106990.0,106980.0,0.12990228]
[1760860388389,0.34,106990.0,106980.0,0.03618228]
[1760860388584,0.34,106990.0,106980.0,0.12990228]
[1760860388883,0.34,106990.0,106980.0,0.03618228]
[1760860389291,0.34,106990.0,106980.0,0.1409148]
[1760860389491,0.34,106990.0,106980.0,0.0471948]
[1760860389685,0.34,106990.0,106980.0,0.1409148]
[1760860390189,0.34,106990.0,106980.0,0.12990228]
[1760860390960,0.34,106990.0,106980.0,0.03618228]
[1760860391160,0.34,106990.0,106980.0,0.12990228]
[1760860391363,0.34,106990.0,106980.0,0.03618228]
[1760860391509,0.34,106990.0,106980.0,0.12990228]
[1760860397264,0.34,106990.0,106980.0,0.03618228]
[1760860397465,0.34,106990.0,106980.0,0.12990228]
[1760860397616,0.34,106990.0,106980.0,0.14859736]
[1760860397821,0.34,106990.0,106980.0,0.05487736]
[1760860398147,0.34,106990.0,106980.0,0.03618228]
[1760860398374,0.34,106990.0,106980.0,0.12990228]
[1760860398789,0.34,106990.0,106980.0,0.03618228]
[1760860399393,0.34,106990.0,106980.0,0.12990228]
[1760860400082,0.34,106990.0,106980.0,0.03618228]
[1760860400265,0.34,106990.0,106980.0,0.12990228]
[1760860401284,0.34,106990.0,106980.0,0.03618228]
[1760860401476,0.34,106990.0,106980.0,0.12990228]
[1760860402015,0.34,106990.0,106980.0,0.03618228]
[1760860402178,0.34,106990.0,106980.0,0.12990228]
[1760860403835,0.34,106990.0,106980.0,0.1580145]
[1760860405579,0.34,106990.0,106980.0,0.16953753]
[1760860407958,0.34,106990.0,106980.0,0.1580145]
[1760860413229,0.34,106990.0,106980.0,0.16949894]
[1760860417406,0.34,106990.0,106980.0,0.1580145]
[1760860427184,0.34,106990.0,106980.0,0.16864276]
[1760860428303,0.0444546,107000.0,106980.0,0.16864276]
[1760860428435,5.0,106990.0,106980.0,0.16864276]
[1760860428859,5.0,106990.0,106980.0,0.1580145]
[1760860432071,5.0,106990.0,106980.0,0.16859351]
[1760860433675,0.3844546,107000.0,106980.0,0.16859351]
[1760860433893,0.4019949,107000.0,106980.0,0.16859351]
[1760860434266,0.3844546,107000.0,106980.0,0.16859351]
[1760860435066,0.36979154,107000.0,106980.0,0.16859351]
[1760860437979,0.38445347,107000.0,106980.0,0.16859351]
[1760860441276,0.01634125,107000.0,106990.0,0.31752651]
[1760860441678,0.00167932,107000.0,106990.0,0.7938605]
[1760860441883,4.99e-05,107000.0,106990.0,0.7938605]
[1760860442871,4.99e-05,107000.0,106990.0,0.8128605]
[1760860444190,4.99e-05,107000.0,106990.0,0.36463185]
[1760860444361,4.99e-05,107000.0,106990.0,0.8128605]
[1760860444920,4.99e-05,107000.0,106990.0,0.9065805]
[1760860445138,4.99e-05,107000.0,106990.0,0.35463185]
[1760860445356,0.00167887,107000.0,106990.0,0.44835185]
[1760860445553,0.00167887,107000.0,106990.0,0.84835185]
[1760860448069,0.01633713,107000.0,106990.0,0.84835185]
[1760860455821,0.01633713,107000.0,106990.0,0.75463185]
[1760860456025,0.01633713,107000.0,106990.0,0.84835185]
[1760860456357,0.01633713,107000.0,106990.0,0.75463185]
[1760860456751,0.01633713,107000.0,106990.0,0.84835185]
[1760860457324,0.01633713,107000.0,106990.0,0.75463185]
[1760860457568,0.01633713,107000.0,106990.0,0.84835185]
[1760860457794,0.01633713,107000.0,106990.0,0.75463185]
[1760860457928,0.01633713,107000.0,106990.0,0.84835185]
[1760860458329,0.01633713,107000.0,106990.0,0.75463185]
[1760860458739,0.01633713,107000.0,106990.0,0.84835185]
[1760860459398,0.01633713,107000.0,106990.0,0.75463185]
[1760860459962,0.01633713,107000.0,106990.0,0.84835185]
[1760860460158,0.01633713,107000.0,106990.0,0.75463185]
[1760860460364,0.01633713,107000.0,106990.0,0.84835185]
[1760860460966,0.01633713,107000.0,106990.0,0.75463185]
[1760860461189,0.01633713,107000.0,106990.0,0.84835185]
[1760860463825,0.01633713,107000.0,106990.0,0.74563185]
[1760860464034,0.01633713,107000.0,106990.0,0.83935185]
[1760860465011,0.01633713,107000.0,106990.0,0.74563185]
[1760860465229,0.01633713,107000.0,106990.0,0.83935185]
[1760860465659,0.01633713,107000.0,106990.0,0.74563185]
[1760860465869,0.01633713,107000.0,106990.0,0.83931185]
[1760860466846,0.01633713,107000.0,106990.0,0.74563185]
[1760860467413,0.01633713,107000.0,106990.0,0.83931185]
[1760860467811,0.01633713,107000.0,106990.0,0.74563185]
[1760860468226,0.01633713,107000.0,106990.0,0.83931185]
[1760860468625,0.01633713,107000.0,106990.0,0.74563185]
[1760860468835,0.01633713,107000.0,106990.0,0.83931185]
[1760860469065,0.00167887,107000.0,106990.0,0.83931185]
[1760860470357,0.00167887,107000.0,106990.0,0.74563185]
[1760860470574,0.00167887,107000.0,106990.0,0.83931185]
[1760860470947,0.00167887,107000.0,106990.0,0.74563185]
[1760860471116,0.00167887,107000.0,106990.0,0.83931185]
[1760860471309,0.00167887,107000.0,106990.0,0.74563185]
[1760860471644,0.00167887,107000.0,106990.0,0.83931185]
[1760860473829,0.00167887,107000.0,106990.0,0.74563185]
[1760860474208,0.00167887,107000.0,106990.0,0.83931185]
[1760860475501,0.00167887,107000.0,106990.0,0.1586985]
[1760860475641,0.00167887,107000.0,106990.0,0.42553092]
[1760860475842,0.00167887,107000.0,106990.0,0.41120651]
[1760860476246,0.00934317,107030.0,106990.0,0.32687317]
[1760860476445,0.02737176,107030.0,107000.0,0.04521335]
[1760860476649,0.001629,107020.0,107010.0,0.09372]
[1760860477049,0.19670612,107030.0,107000.0,0.04521335]
[1760860477232,0.21423578,107030.0,107010.0,0.09372]
[1760860477595,0.22741907,107030.0,107000.0,0.04521335]
[1760860477786,0.22741907,107030.0,107010.0,0.09372]
[1760860478762,0.22741907,107030.0,107000.0,0.04521335]
[1760860478972,0.22741907,107030.0,107010.0,0.09372]
[1760860479197,0.24207752,107030.0,107010.0,0.09372]
[1760860479600,0.24370651,107030.0,107010.0,0.09372]
[1760860479805,0.24370651,107030.0,107000.0,0.04521335]
[1760860480006,0.24370651,107030.0,107010.0,0.09372]
[1760860480381,0.24370238,107030.0,107010.0,0.09372]
[1760860481154,0.24207339,107030.0,107010.0,0.09372]
[1760860483301,0.24370237,107030.0,107010.0,0.09372]
[1760860483674,0.00071771,107020.0,107010.0,0.09372]
[1760860494417,0.34071771,107020.0,107010.0,0.09372]
[1760860495956,0.00071771,107020.0,107010.0,0.09372]
[1760860509379,0.00071771,107020.0,107000.0,0.04719781]
[1760860509562,0.37383267,107030.0,107010.0,0.09368]
[1760860509762,0.00162899,107020.0,107010.0,0.09368]
[1760860510282,0.37383267,107030.0,107010.0,0.09368]
[1760860510509,0.39135324,107030.0,107010.0,0.09368]
[1760860512727,0.39298225,107030.0,107010.0,0.09368]
[1760860513133,0.41650394,107030.0,107010.0,0.09368]
[1760860520096,0.41686274,107030.0,107010.0,0.09368]
[1760860524163,0.44496858,107030.0,107010.0,0.09368]
[1760860528971,0.42144689,107030.0,107010.0,0.09368]
[1760860529756,0.39334105,107030.0,107010.0,0.09368]
[1760860529960,0.02810584,107020.0,107010.0,0.09368]
[1760860530514,0.04276469,107020.0,107010.0,0.09368]
[1760860547883,5.0,107020.0,107010.0,0.09368]
[1760860548082,5.02810655,107020.0,107010.0,0.09368]
[1760860548294,0.02810655,107020.0,107010.0,0.09368]
[1760860549772,0.36810655,107020.0,107010.0,0.09368]
[1760860564537,0.3679707,107020.0,107010.0,0.09368]
[1760860569461,0.0279707,107020.0,107010.0,0.09368]
[1760860588453,5.0,107020.0,107010.0,0.09368]
[1760860588789,0.02973537,107020.0,107010.0,0.09368]
[1760860589354,0.0281065,107020.0,107010.0,0.09368]
[1760860591867,0.02973537,107020.0,107010.0,0.09368]
[1760860593370,0.0281065,107020.0,107010.0,0.09368]
[1760860595924,0.02973533,107020.0,107010.0,0.09368]
[1760860601737,5.0,107020.0,107010.0,0.09368]
[1760860601940,0.02973537,107020.0,107010.0,0.09368]
[1760860602596,0.0281065,107020.0,107010.0,0.09368]
[1760860605644,0.02973537,107020.0,107010.0,0.09368]
[1760860613837,5.0,107020.0,107010.0,0.09368]
[1760860614036,0.00162887,107020.0,107010.0,0.09368]
[1760860614457,0.00162887,107020.0,107010.0,0.1217865]
[1760860614658,0.62969134,107030.0,107010.0,0.1217865]
[1760860614815,5.0,107020.0,107010.0,0.1217865]
[1760860617222,0.00162887,107020.0,107010.0,0.1217865]
[1760860634076,0.00162887,107020.0,107010.0,0.09368]
[1760860634228,0.02973537,107020.0,107010.0,0.09368]
[1760860639613,0.36973537,107020.0,107010.0,0.09368]
[1760860646400,0.3681065,107020.0,107010.0,0.09368]
[1760860650232,0.36973538,107020.0,107010.0,0.09368]
[1760860651038,0.00162888,107020.0,107010.0,0.09368]
[1760860651686,0.00162888,107020.0,107010.0,0.1217865]
[1760860656780,0.00162888,107020.0,107010.0,0.15796878]
[1760860657873,0.00162888,107020.0,107010.0,0.16403202]
[1760860661143,0.00162888,107020.0,107010.0,0.17665862]
[1760860662564,0.34162888,107020.0,107010.0,0.17665862]
[1760860673737,0.00162888,107020.0,107010.0,0.17665862]
[1760860673935,0.34162888,107020.0,107010.0,0.17665862]
[1760860683485,0.00162888,107020.0,107010.0,0.17665862]
[1760860683703,0.34162888,107020.0,107010.0,0.15796878]
[1760860686110,0.00162888,107020.0,107010.0,0.15796878]
[1760860686306,0.34162888,107020.0,107010.0,0.17665862]
[1760860687517,0.00162888,107020.0,107010.0,0.17665862]
[1760860687725,0.34162888,107020.0,107010.0,0.17665862]
[1760860690351,0.00162888,107020.0,107010.0,0.17665862]
[1760860690563,0.34162888,107020.0,107010.0,0.17665862]
[1760860692646,0.00162888,107020.0,107010.0,0.17665862]
[1760860692944,0.34162888,107020.0,107010.0,0.17665862]
[1760860693152,5.0,107020.0,107010.0,0.17665862]
[1760860693377,0.00162879,107020.0,107010.0,0.08297862]
[1760860693537,0.00162879,107020.0,107010.0,0.17665862]
[1760860693737,0.58145638,107030.0,107010.0,0.17665862]
[1760860693946,5.0,107020.0,107010.0,0.08297862]
[1760860694146,5.0,107020.0,107010.0,0.14855212]
[1760860694346,5.0,107020.0,107010.0,0.17665486]
[1760860695476,5.0,107020.0,107010.0,0.08297486]
[1760860695886,5.0,107020.0,107010.0,0.17665486]
[1760860696892,0.0016288,107020.0,107010.0,0.17665486]
[1760860697112,0.0016288,107020.0,107010.0,0.08297486]
[1760860697409,0.0016288,107020.0,107010.0,0.17665486]
[1760860699171,0.0016288,107020.0,107010.0,0.08297486]
[1760860699413,0.0016288,107020.0,107010.0,0.17665486]
[1760860699791,0.0016288,107020.0,107010.0,0.08297486]
[1760860700330,0.0016288,107020.0,107010.0,0.17665486]
[1760860700723,0.0016288,107020.0,107010.0,0.08297486]
[1760860700923,0.0016288,107020.0,107010.0,0.17665486]
[1760860701133,0.0016288,107020.0,107010.0,0.08297486]
[1760860701386,0.0016288,107020.0,107010.0,0.17665486]
[1760860705717,0.0016288,107020.0,107010.0,0.08297486]
[1760860706231,0.0016288,107020.0,107010.0,0.17665486]
[1760860706825,0.0016288,107020.0,107010.0,0.08297486]
[1760860707528,0.0016288,107020.0,107010.0,0.17665486]
[1760860707735,0.0016288,107020.0,107010.0,0.08297486]
[1760860708385,0.0016288,107020.0,107010.0,0.17665486]
[1760860710327,0.0016288,107020.0,107010.0,0.08297486]
[1760860710653,0.0016288,107020.0,107010.0,0.17665486]
[1760860710954,0.0016288,107020.0,107010.0,0.08297486]
[1760860711174,0.0016288,107020.0,107010.0,0.17665486]
[1760860711303,0.0016288,107020.0,107010.0,0.08297486]
[1760860711520,0.0016288,107020.0,107010.0,0.17665486]
[1760860711992,0.0016288,107020.0,107010.0,0.08297486]
[1760860712400,0.0016288,107020.0,107010.0,0.17665486]
[1760860712807,0.0016288,107020.0,107010.0,0.08297486]
[1760860713038,0.0016288,107020.0,107010.0,0.17665486]
[1760860714381,0.0016288,107020.0,107010.0,0.08297486]
[1760860714586,0.0016288,107020.0,107010.0,0.17665486]
[1760860715212,0.0016288,107020.0,107010.0,0.08297486]
[1760860715413,0.0016288,107020.0,107010.0,0.15796502]
[1760860715977,0.0016288,107020.0,107010.0,0.06428502]
[1760860716475,0.0016288,107020.0,107010.0,0.15796502]
[1760860716902,0.0016288,107020.0,107010.0,0.02810274]
[1760860717122,0.0016288,107020.0,107010.0,0.09368]
[1760860717329,0.0016288,107020.0,107000.0,0.04657529]
[1760860717557,0.0016288,107020.0,107010.0,0.09368]
[1760860718245,0.0016288,107020.0,107000.0,0.04657529]
[1760860718721,0.0016288,107020.0,107010.0,0.09368]
[1760860718954,0.0016288,107020.0,107000.0,0.04657529]
[1760860719171,0.0016288,107020.0,107010.0,0.09368]
[1760860719569,0.0016288,107020.0,107000.0,0.02810471]
[1760860719780,0.0016288,107020.0,107010.0,0.09368]
[1760860720175,0.0016288,107020.0,107000.0,0.02810471]
[1760860720610,0.0016288,107020.0,107010.0,0.09368]
[1760860720848,0.0016288,107020.0,107000.0,0.02810471]
[1760860721016,0.0016288,107020.0,107000.0,0.12178471]
[1760860721369,0.18851015,107020.0,107000.0,0.12178471]
[1760860721613,0.18851015,107020.0,107000.0,0.09368]
[1760860722012,0.18851015,107020.0,106990.0,0.06428847]
[1760860722219,0.34,107010.0,106990.0,0.09368]
[1760860722423,0.36810924,107010.0,106990.0,0.09368]
[1760860722865,0.38277029,107010.0,106990.0,0.09368]
[1760860724907,0.36810924,107010.0,106990.0,0.09368]
[1760860727875,0.3827703,107010.0,106990.0,0.09368]
[1760860729138,0.04439935,107010.0,106990.0,0.09368]
[1760860732971,0.04439935,107010.0,106990.0,0.11237333]
[1760860734222,0.38439935,107010.0,106990.0,0.11237333]
[1760860736310,0.3827703,107010.0,106990.0,0.11237333]
[1760860738873,0.36810924,107010.0,106990.0,0.11237333]
[1760860739289,0.36973823,107010.0,106990.0,0.11237333]
[1760860741934,0.38439854,107010.0,106990.0,0.11237333]
[1760860751433,0.38439854,107010.0,106990.0,0.09368]
[1760860751978,0.38439854,107010.0,106990.0,0.1014783]
[1760860753165,0.20986616,107010.0,106990.0,0.1014783]
[1760860753502,0.0162893,107010.0,106990.0,0.1014783]
[1760860753707,0.0162893,107010.0,106990.0,0.13476645]
[1760860756067,0.0162893,107010.0,106990.0,0.10665721]
[1760860756257,0.04439854,107010.0,106990.0,0.10665721]
[1760860757216,0.38439854,107010.0,106990.0,0.10665721]
[1760860759525,0.04439854,107010.0,106990.0,0.10665721]
[1760860761458,0.04439854,107010.0,106990.0,0.29359016]
[1760860761675,0.0162893,107010.0,107000.0,0.18691588]
[1760860761884,0.0162893,107010.0,106990.0,0.3087204]
[1760860762073,0.0162893,107010.0,107000.0,0.01319982]
[1760860765423,0.00162899,107010.0,107000.0,0.01319982]
[1760860769710,0.01628822,107010.0,107000.0,0.01319982]
[1760860774327,0.01628822,107010.0,106990.0,0.10687982]
[1760860774528,0.01628822,107010.0,106990.0,0.29381053]
[1760860774710,0.01628822,107010.0,106990.0,0.28061071]
[1760860774913,0.01628822,107010.0,107000.0,0.01294943]
[1760860786637,5.0,107010.0,107000.0,0.01294943]
[1760860786848,0.00162891,107010.0,107000.0,0.01294943]
[1760860787573,5.0,107020.0,107000.0,0.01294943]
[1760860789914,5.0,107010.0,107000.0,0.01294943]
[1760860790509,5.0146594,107010.0,107000.0,0.01294943]
[1760860790684,0.0146594,107010.0,107000.0,0.01294943]
[1760860794957,0.36810745,107030.0,107000.0,0.01294943]
[1760860795091,0.00162893,107010.0,107000.0,0.01294943]
[1760860795296,0.36810745,107030.0,107000.0,0.01294943]
[1760860795493,5.0,107020.0,107000.0,0.01294943]
[1760860795671,0.00162892,107010.0,107000.0,0.01294943]
[1760860795894,5.0,107020.0,107000.0,0.01294943]
[1760860796100,5.50162892,107010.0,107000.0,0.01294943]
[1760860796299,5.00162892,107010.0,107000.0,0.01294943]
[1760860798181,5.0162885,107010.0,107000.0,0.01294943]
[1760860799948,5.3562885,107010.0,107000.0,0.01294943]
[1760860802878,0.0162885,107010.0,107000.0,0.23604759]
[1760860803086,0.0162885,107010.0,107000.0,0.22309816]
[1760860803301,0.0162885,107010.0,107000.0,0.03618228]
[1760860803470,0.0162885,107010.0,107000.0,0.04792542]
[1760860812054,0.0162885,107010.0,107000.0,0.03618228]
[1760860814311,5.0,107010.0,107000.0,0.03618228]
[1760860815083,5.0,107020.0,107000.0,0.03618228]
[1760860816793,5.0,107020.0,106990.0,0.29792722]
[1760860816983,5.0,107020.0,106990.0,0.19605824]
[1760860817186,5.0,107010.0,106980.0,0.19629549]
[1760860817422,5.0,107010.0,106980.0,0.38438637]
[1760860817752,5.0,107010.0,106980.0,0.41249382]
[1760860818747,5.0,107000.0,106980.0,0.41249382]
[1760860822190,5.001629,107000.0,106980.0,0.41249382]
[1760860822410,0.001629,107000.0,106980.0,0.41249382]
[1760860822618,5.0,107000.0,106980.0,0.41249382]
[1760860822768,5.001629,107000.0,106980.0,0.41249382]
[1760860822975,0.001629,107000.0,106980.0,0.41249382]
[1760860823585,0.001629,107000.0,106990.0,0.01247544]
[1760860825902,0.001629,107000.0,106980.0,0.41249382]
[1760860831857,0.001629,107000.0,106990.0,0.01869333]
[1760860834769,0.001629,107000.0,106980.0,0.41249382]
[1760860838594,0.001629,107000.0,106990.0,0.01152498]
[1760860840912,0.01628895,107000.0,106990.0,0.01152498]
[1760860841552,0.01628895,107000.0,106980.0,0.41249382]
[1760860842845,0.01628895,107000.0,106990.0,0.01869333]
[1760860846132,0.01628895,107000.0,106990.0,0.20562668]
[1760860846333,0.01628895,107000.0,106990.0,0.18693335]
[1760860846537,0.01582162,107000.0,106990.0,0.18693335]
[1760860846758,0.00116167,107000.0,106990.0,0.18693335]
[1760860851154,0.01582109,107000.0,106990.0,0.18693335]
[1760860851981,0.01582109,107000.0,106990.0,0.28134423]
[1760860852211,0.01582109,107000.0,106990.0,0.30945005]
[1760860854790,0.52810745,107020.0,106990.0,0.31879671]
[1760860854989,5.0,107010.0,107000.0,0.09368]
[1760860859833,5.01628831,107010.0,107000.0,0.09368]
[1760860860076,0.01628831,107010.0,107000.0,0.09368]
[1760860860489,5.01628831,107010.0,107000.0,0.09368]
[1760860863872,5.00162894,107010.0,107000.0,0.09368]
[1760860867088,5.34162894,107010.0,107000.0,0.09368]
[1760860868271,5.35628873,107010.0,107000.0,0.09368]
[1760860871859,0.35628873,107010.0,107000.0,0.29928746]
[1760860872078,0.01628873,107010.0,107000.0,0.72882453]
[1760860872288,0.01628873,107010.0,107000.0,0.82323541]
[1760860872487,0.01628873,107010.0,107000.0,0.41118904]
[1760860872701,0.01628873,107010.0,107000.0,0.85941769]
[1760860873027,0.00162894,107010.0,107000.0,0.88751979]
[1760860873242,0.34,107020.0,107000.0,0.88751979]
[1760860873366,0.0325721,107040.0,107030.0,0.22304577]
[1760860873576,4.987e-05,107040.0,107030.0,0.41121665]
[1760860873773,4.987e-05,107040.0,107030.0,0.8594453]
[1760860873977,4.987e-05,107040.0,107030.0,0.43931012]
[1760860876816,0.02361675,107040.0,107030.0,0.43931012]
[1760860877489,0.02361675,107040.0,107030.0,0.83931012]
[1760860877694,0.02361675,107040.0,107030.0,0.43931012]
[1760860878685,0.02361675,107040.0,107030.0,0.25240663]
[1760860878829,0.02397549,107040.0,107030.0,0.12181347]
[1760860879035,0.02397549,107040.0,107030.0,0.14049981]
[1760860879239,0.02397549,107040.0,107030.0,0.11240634]
[1760860880553,0.02397549,107040.0,107030.0,0.09372]
[1760860882628,0.03862962,107040.0,107030.0,0.09372]
[1760860885648,0.34,107050.0,107030.0,0.09372]
[1760860885852,0.19778034,107060.0,107030.0,0.09372]
[1760860886058,5.0,107050.0,107030.0,0.09372]
[1760860887593,5.02373744,107050.0,107030.0,0.09372]
[1760860887892,0.02373744,107050.0,107030.0,0.09372]
[1760860888263,5.0,107050.0,107030.0,0.09372]
[1760860888599,5.0,107050.0,107030.0,0.11240634]
[1760860889359,5.0,107050.0,107030.0,0.29926956]
[1760860889587,0.02378071,107050.0,107030.0,0.28058322]
[1760860889787,0.34167833,107060.0,107040.0,0.0186846]
[1760860890010,0.35465392,107050.0,107040.0,0.0186846]
[1760860890413,0.37864133,107050.0,107040.0,0.0186846]
[1760860895173,0.37864133,107050.0,107040.0,0.20553063]
[1760860895380,0.37900002,107050.0,107040.0,0.18684603]
[1760860895554,0.3643461,107050.0,107040.0,0.18684603]
[1760860897709,0.00035869,107050.0,107040.0,0.76566784]
[1760860899212,0.01500983,107050.0,107040.0,0.76566784]
[1760860899505,0.00035869,107050.0,107040.0,0.76566784]
[1760860900264,0.00035869,107050.0,107040.0,0.31743919]
[1760860900468,0.00035869,107050.0,107040.0,0.76566784]
[1760860901073,0.00035869,107050.0,107040.0,0.77566784]
[1760860901292,0.00035869,107050.0,107040.0,1.24430784]
[1760860903259,0.01500966,107050.0,107040.0,1.24430784]
[1760860903853,0.01500966,107050.0,107040.0,1.69253649]
[1760860904280,0.01500966,107050.0,107040.0,1.70253648]
[1760860904678,0.00035869,107050.0,107040.0,1.70253648]
[1760860905955,0.00035869,107050.0,107040.0,1.72641807]
[1760860906758,0.00035869,107050.0,107040.0,1.27818942]
[1760860906961,0.00035869,107050.0,107040.0,2.06641807]
[1760860907964,0.00035869,107050.0,107040.0,2.21371807]
[1760860908892,0.00035869,107050.0,107040.0,2.2174626]
[1760860910474,0.0004,107090.0,107080.0,0.18677624]
[1760860910694,0.00044986,107090.0,107080.0,0.87939804]
[1760860910898,0.00044986,107090.0,107080.0,0.3273694]
[1760860911103,0.00044986,107090.0,107080.0,0.8112094]
[1760860911665,0.00044986,107090.0,107080.0,0.3173694]
[1760860911834,0.00044986,107090.0,107080.0,0.4112094]
[1760860912033,0.00044986,107090.0,107080.0,0.09384]
[1760860912300,0.00044986,107090.0,107080.0,0.29929386]
[1760860912493,0.00044986,107090.0,107080.0,0.28061624]
[1760860912634,0.00044986,107090.0,107080.0,0.09384]
[1760860913282,0.00044986,107090.0,107080.0,0.11251762]
[1760860913695,0.00044986,107090.0,107080.0,0.29929386]
[1760860913893,0.00044986,107090.0,107080.0,0.28061624]
[1760860915765,0.00044986,107090.0,107080.0,0.28051624]
[1760860916175,0.00188402,107090.0,107080.0,0.28051624]
[1760860917112,0.00188402,107090.0,107080.0,0.09374]
[1760860917341,0.00188402,107090.0,107080.0,0.28051624]
[1760860918950,0.01653108,107090.0,107080.0,0.09374]
[1760860921015,0.01653108,107090.0,107080.0,0.29919386]
[1760860921279,0.01653108,107090.0,107080.0,0.28051624]
[1760860922373,0.01653108,107090.0,107080.0,0.09374]
[1760860922571,0.01653108,107090.0,107080.0,0.29919386]
[1760860922776,0.01653108,107090.0,107080.0,0.28051624]
[1760860923350,0.35653108,107090.0,107080.0,0.09374]
[1760860925819,0.01653108,107090.0,107080.0,0.09374]
[1760860925993,0.35653108,107090.0,107080.0,0.09374]
[1760860927646,0.01653108,107090.0,107080.0,0.09374]
[1760860927860,0.35653108,107090.0,107080.0,0.09374]
[1760860929376,5.0,107080.0,107050.0,0.19617]
[1760860929581,5.0,107080.0,107060.0,0.29929177]
[1760860929801,5.0,107080.0,107060.0,0.28061066]
[1760860930008,0.34,107080.0,107070.0,0.01867936]
[1760860931331,0.34,107080.0,107060.0,0.11248111]
[1760860932923,0.34,107080.0,107050.0,0.29058088]
[1760860933153,0.34,107080.0,107060.0,0.09384]
[1760860933361,5.0,107070.0,107060.0,0.09384]
[1760860933798,0.00071721,107070.0,107060.0,0.09384]
[1760860934016,0.0153675,107070.0,107060.0,0.09384]
[1760860934223,0.3553675,107070.0,107060.0,0.09384]
[1760860935336,0.0153675,107070.0,107060.0,0.09384]
[1760860936361,0.0153675,107070.0,107050.0,0.09441088]
[1760860936620,5.0,107060.0,107040.0,0.16244]
[1760860936869,0.34,107050.0,107040.0,0.16244]
[1760860937350,0.34,107050.0,107040.0,0.17424814]
[1760860937585,0.01465321,107050.0,107040.0,0.17424814]
[1760860938050,0.01465321,107050.0,107040.0,0.17429799]
[1760860942057,0.35465321,107050.0,107040.0,0.17429799]
[1760860944558,0.35465321,107050.0,107040.0,0.16248985]
[1760860944979,0.35465321,107050.0,107040.0,0.06868985]
[1760860945397,0.35628147,107050.0,107040.0,0.06868985]
[1760860950246,0.35628147,107050.0,107040.0,0.08011324]
[1760860951141,0.35628147,107050.0,107040.0,0.26695927]
[1760860951354,0.01628147,107050.0,107040.0,0.06868985]
[1760860951568,0.35628147,107050.0,107040.0,0.07933257]
[1760860958629,0.01628147,107050.0,107040.0,0.07933257]
[1760860958769,0.35628147,107050.0,107040.0,0.07933257]
[1760860963715,0.01628147,107050.0,107040.0,0.2661786]
[1760860963945,0.35628147,107050.0,107040.0,0.25553588]
[1760860967991,0.35628147,107050.0,107040.0,0.06868985]
[1760860968194,0.35628147,107050.0,107040.0,0.08028254]
[1760860972458,5.0,107050.0,107040.0,0.08028254]
[1760860972650,0.0016282,107050.0,107040.0,0.08028254]
[1760860973303,5.0,107050.0,107040.0,0.08028254]
[1760860975793,0.0016282,107050.0,107040.0,0.08028254]
[1760860978826,0.3416282,107050.0,107040.0,0.08028254]
[1760860979259,0.3416282,107050.0,107040.0,0.06868985]
[1760860979860,0.0016282,107050.0,107040.0,0.06868985]
[1760860980101,0.35628156,107050.0,107040.0,0.06868985]
[1760860983036,0.01465336,107050.0,107040.0,0.06868985]
[1760860983241,0.35465336,107050.0,107040.0,0.06868985]
[1760860987373,5.54311023,107050.0,107040.0,0.06868985]
[1760860987576,5.63691023,107050.0,107040.0,0.06868985]
[1760860987782,5.63978062,107050.0,107040.0,0.06868985]
[1760860988201,5.62225687,107050.0,107040.0,0.06868985]
[1760860990072,5.63691142,107050.0,107040.0,0.06868985]
[1760860994897,5.62225687,107050.0,107040.0,0.06868985]
[1760860995757,5.63973915,107050.0,107040.0,0.06868985]
[1760860996182,5.66784218,107050.0,107040.0,0.06868985]
[1760860998180,5.68249748,107050.0,107040.0,0.06868985]
[1760861004975,5.34249748,107050.0,107040.0,0.06868985]
[1760861005533,5.58559748,107050.0,107040.0,0.06868985]
[1760861006797,5.92559748,107050.0,107040.0,0.06868985]
[1760861007352,5.7387689,107050.0,107040.0,0.06868985]
[1760861007555,5.92559748,107050.0,107040.0,0.06868985]
[1760861015747,5.83179748,107050.0,107040.0,0.06868985]
[1760861016248,5.7387689,107050.0,107040.0,0.06868985]
[1760861016662,5.7241136,107050.0,107040.0,0.06868985]
[1760861017863,5.52393185,107050.0,107040.0,0.06868985]
[1760861018091,5.52556041,107050.0,107040.0,0.06868985]
[1760861019410,5.54021568,107050.0,107040.0,0.06868985]
[1760861029477,5.44641568,107050.0,107040.0,0.06868985]
[1760861029684,5.4289334,107050.0,107040.0,0.06868985]
[1760861030140,5.41427813,107050.0,107040.0,0.06868985]
[1760861034672,5.41427813,107050.0,107040.0,0.18409815]
[1760861040112,5.07427813,107050.0,107040.0,0.18409815]
[1760861040286,5.41427813,107050.0,107040.0,0.18409815]
[1760861040791,5.3861751,107050.0,107040.0,0.18409815]
[1760861042829,0.34162856,107050.0,107040.0,0.46470418]
[1760861043633,0.01501261,107060.0,107050.0,0.18682858]
[1760861043634,5.0284538,107060.0,107050.0,0.18682858]
[1760861043987,5.3684538,107060.0,107050.0,0.18682858]
[1760861044532,5.34035864,107060.0,107050.0,0.18682858]
[1760861044928,5.0,107050.0,107040.0,0.46470418]
[1760861045131,5.0,107050.0,107040.0,0.27785815]
[1760861045384,0.34,107050.0,107040.0,0.18409815]
[1760861046132,5.34,107050.0,107040.0,0.18409815]
[1760861051346,5.36809934,107050.0,107040.0,0.18409815]
[1760861052438,5.55492792,107050.0,107040.0,0.18409815]
[1760861053758,5.36809934,107050.0,107040.0,0.18409815]
[1760861054186,5.55492792,107050.0,107040.0,0.18409815]
[1760861057345,5.36809934,107050.0,107040.0,0.18409815]
[1760861058174,5.55492792,107050.0,107040.0,0.18409815]
[1760861058921,5.57241971,107050.0,107040.0,0.18409815]
[1760861059707,5.58707539,107050.0,107040.0,0.18409815]
[1760861063368,5.40024681,107050.0,107040.0,0.18409815]
[1760861064248,5.58707539,107050.0,107040.0,0.18409815]
[1760861066387,5.68083539,107050.0,107040.0,0.18409815]
[1760861069657,5.58706671,107050.0,107040.0,0.18409815]
[1760861069863,5.68082671,107050.0,107040.0,0.18409815]
[1760861071321,5.6633436,107050.0,107040.0,0.18409815]
[1760861072005,5.5695836,107050.0,107040.0,0.18409815]
[1760861072117,5.6633436,107050.0,107040.0,0.18409815]
[1760861074199,5.5695836,107050.0,107040.0,0.18409815]
[1760861074401,5.68083464,107050.0,107040.0,0.18409815]
[1760861078125,5.49400606,107050.0,107040.0,0.18409815]
[1760861078569,5.68083464,107050.0,107040.0,0.18409815]
[1760861093883,5.49400606,107050.0,107040.0,0.18409815]
[1760861094444,5.68083464,107050.0,107040.0,0.18409815]